Workbook

Sheet 2024年-2025学年（第二学期）龙华区幼儿园保教人员(2)
A1: 附件2
A2: 2024年-2025学年（第二学期）龙华区幼儿园保教人员长期从教津贴审核结果汇总表
A3: 总序号 | B3: 学区 | C3: 学区序号 | D3: 幼儿园序号 | E3: 幼儿园名称 | F3: 姓名 | G3: 性别 | H3: 资格证类别 | I3: 现任岗位 | J3: 年级 | K3: 班级 | L3: 可领津贴年限(年） | M3: 留任/新增 | N3: 核定全年 可领取津贴金额（元） | O3: 本学期 可领取津贴金额（元） | P3: 本学期从教津贴总额（元）
A4: 1 | B4: 观湖1 | C4: 1 | D4: 1 | E4: 深圳市龙华区第三幼儿园 | F4: 郭映霞 | G4: 女 | H4: 教师资格证 | I4: 园长 | J4: 无 | K4: 无 | L4: 10 | M4: 留任 | N4: 24000 | O4: 12000 | P4: =SUMIF(E:E,E4,O:O) -> 306000
A5: 2 | B5: 观湖1 | C5: 2 | D5: 2 | E5: 深圳市龙华区第三幼儿园 | F5: 罗小娟 | G5: 女 | H5: 教师资格证 | I5: 后勤主任 | J5: 无 | K5: 无 | L5: 10 | M5: 留任 | N5: 24000 | O5: 12000
A6: 3 | B6: 观湖1 | C6: 3 | D6: 3 | E6: 深圳市龙华区第三幼儿园 | F6: 吴冰芳 | G6: 女 | H6: 教师资格证 | I6: 专任教师 | J6: 大班 | K6: 3 | L6: 10 | M6: 留任 | N6: 24000 | O6: 12000
A7: 4 | B7: 观湖1 | C7: 4 | D7: 4 | E7: 深圳市龙华区第三幼儿园 | F7: 温雨娇 | G7: 女 | H7: 教师资格证 | I7: 专任教师 | J7: 大班 | K7: 4 | L7: 10 | M7: 留任 | N7: 24000 | O7: 12000
A8: 5 | B8: 观湖1 | C8: 5 | D8: 5 | E8: 深圳市龙华区第三幼儿园 | F8: 张燕杰 | G8: 女 | H8: 教师资格证 | I8: 干事助理 | J8: 无 | K8: 无 | L8: 10 | M8: 留任 | N8: 24000 | O8: 12000
A9: 6 | B9: 观湖1 | C9: 6 | D9: 6 | E9: 深圳市龙华区第三幼儿园 | F9: 黄苑 | G9: 女 | H9: 教师资格证 | I9: 专任教师 | J9: 中班 | K9: 3 | L9: 10 | M9: 留任 | N9: 24000 | O9: 12000
A10: 7 | B10: 观湖1 | C10: 7 | D10: 7 | E10: 深圳市龙华区第三幼儿园 | F10: 梁凤 | G10: 女 | H10: 教师资格证 | I10: 保教主任 | J10: 无 | K10: 无 | L10: 10 | M10: 留任 | N10: 24000 | O10: 12000
A11: 8 | B11: 观湖1 | C11: 8 | D11: 8 | E11: 深圳市龙华区第三幼儿园 | F11: 陈美莲 | G11: 女 | H11: 保健人员上岗培训合格证 | I11: 保健医生 | J11: 无 | K11: 无 | L11: 10 | M11: 留任 | N11: 24000 | O11: 12000
A12: 9 | B12: 观湖1 | C12: 9 | D12: 9 | E12: 深圳市龙华区第三幼儿园 | F12: 谢观平 | G12: 女 | H12: 教师资格证 | I12: 办公室主任 | J12: 无 | K12: 无 | L12: 10 | M12: 留任 | N12: 24000 | O12: 12000
A13: 10 | B13: 观湖1 | C13: 10 | D13: 10 | E13: 深圳市龙华区第三幼儿园 | F13: 刘雪花 | G13: 女 | H13: 保健人员上岗培训合格证 | I13: 保健医生 | J13: 无 | K13: 无 | L13: 10 | M13: 留任 | N13: 24000 | O13: 12000
A14: 11 | B14: 观湖1 | C14: 11 | D14: 11 | E14: 深圳市龙华区第三幼儿园 | F14: 李婷婷 | G14: 女 | H14: 教师资格证 | I14: 副园长 | J14: 无 | K14: 无 | L14: 8 | M14: 留任 | N14: 19200 | O14: 9600
A15: 12 | B15: 观湖1 | C15: 12 | D15: 12 | E15: 深圳市龙华区第三幼儿园 | F15: 刘翠琪 | G15: 女 | H15: 教师资格证 | I15: 专任教师 | J15: 大班 | K15: 4 | L15: 8 | M15: 留任 | N15: 19200 | O15: 9600
A16: 13 | B16: 观湖1 | C16: 13 | D16: 13 | E16: 深圳市龙华区第三幼儿园 | F16: 冯瑶 | G16: 女 | H16: 教师资格证 | I16: 专任教师 | J16: 小班 | K16: 3 | L16: 7 | M16: 留任 | N16: 16800 | O16: 8400
A17: 14 | B17: 观湖1 | C17: 14 | D17: 14 | E17: 深圳市龙华区第三幼儿园 | F17: 王鑫茹 | G17: 女 | H17: 教师资格证 | I17: 专任教师 | J17: 小班 | K17: 2 | L17: 7 | M17: 留任 | N17: 16800 | O17: 8400
A18: 15 | B18: 观湖1 | C18: 15 | D18: 15 | E18: 深圳市龙华区第三幼儿园 | F18: 马芬 | G18: 女 | H18: 教师资格证 | I18: 教研员 | J18: 无 | K18: 无 | L18: 7 | M18: 留任 | N18: 16800 | O18: 8400
A19: 16 | B19: 观湖1 | C19: 16 | D19: 16 | E19: 深圳市龙华区第三幼儿园 | F19: 蒋沁伶 | G19: 女 | H19: 教师资格证 | I19: 专任教师 | J19: 小班 | K19: 1 | L19: 7 | M19: 留任 | N19: 16800 | O19: 8400
A20: 17 | B20: 观湖1 | C20: 17 | D20: 17 | E20: 深圳市龙华区第三幼儿园 | F20: 芦莉 | G20: 女 | H20: 教师资格证 | I20: 专任教师 | J20: 大班 | K20: 2 | L20: 6 | M20: 留任 | N20: 14400 | O20: 7200
A21: 18 | B21: 观湖1 | C21: 18 | D21: 18 | E21: 深圳市龙华区第三幼儿园 | F21: 李珊珊 | G21: 女 | H21: 保育员职业技能等级证 | I21: 保育员 | J21: 小班 | K21: 4 | L21: 6 | M21: 留任 | N21: 14400 | O21: 7200
A22: 19 | B22: 观湖1 | C22: 19 | D22: 19 | E22: 深圳市龙华区第三幼儿园 | F22: 郭伟珠 | G22: 女 | H22: 保育员职业技能等级证 | I22: 保育员 | J22: 中班 | K22: 3 | L22: 6 | M22: 留任 | N22: 14400 | O22: 7200
A23: 20 | B23: 观湖1 | C23: 20 | D23: 20 | E23: 深圳市龙华区第三幼儿园 | F23: 邱文森 | G23: 男 | H23: 教师资格证 | I23: 安全主任 | J23: 无 | K23: 无 | L23: 6 | M23: 留任 | N23: 14400 | O23: 7200
A24: 21 | B24: 观湖1 | C24: 21 | D24: 21 | E24: 深圳市龙华区第三幼儿园 | F24: 毛凯艺 | G24: 女 | H24: 教师资格证 | I24: 专任教师 | J24: 中班 | K24: 4 | L24: 5 | M24: 留任 | N24: 12000 | O24: 6000
A25: 22 | B25: 观湖1 | C25: 22 | D25: 22 | E25: 深圳市龙华区第三幼儿园 | F25: 徐嘉琪 | G25: 女 | H25: 教师资格证 | I25: 专任教师 | J25: 中班 | K25: 1 | L25: 5 | M25: 留任 | N25: 12000 | O25: 6000
A26: 23 | B26: 观湖1 | C26: 23 | D26: 23 | E26: 深圳市龙华区第三幼儿园 | F26: 洪敏仪 | G26: 女 | H26: 教师资格证 | I26: 专任教师 | J26: 中班 | K26: 4 | L26: 5 | M26: 留任 | N26: 12000 | O26: 6000
A27: 24 | B27: 观湖1 | C27: 24 | D27: 24 | E27: 深圳市龙华区第三幼儿园 | F27: 陈丹妮 | G27: 女 | H27: 保育员职业技能等级证 | I27: 保育员 | J27: 小班 | K27: 2 | L27: 5 | M27: 留任 | N27: 12000 | O27: 6000
A28: 25 | B28: 观湖1 | C28: 25 | D28: 25 | E28: 深圳市龙华区第三幼儿园 | F28: 周剑慧 | G28: 女 | H28: 保育员职业技能等级证 | I28: 保育员 | J28: 大班 | K28: 1 | L28: 5 | M28: 留任 | N28: 12000 | O28: 6000
A29: 26 | B29: 观湖1 | C29: 26 | D29: 26 | E29: 深圳市龙华区第三幼儿园 | F29: 赖诗慧 | G29: 女 | H29: 教师资格证 | I29: 专任教师 | J29: 小班 | K29: 3 | L29: 5 | M29: 留任 | N29: 12000 | O29: 6000
A30: 27 | B30: 观湖1 | C30: 27 | D30: 27 | E30: 深圳市龙华区第三幼儿园 | F30: 范嘉敏 | G30: 女 | H30: 教师资格证 | I30: 专任教师 | J30: 中班 | K30: 1 | L30: 4 | M30: 留任 | N30: 9600 | O30: 4800
A31: 28 | B31: 观湖1 | C31: 28 | D31: 28 | E31: 深圳市龙华区第三幼儿园 | F31: 刘俏怡 | G31: 女 | H31: 教师资格证 | I31: 专任教师 | J31: 大班 | K31: 1 | L31: 4 | M31: 留任 | N31: 9600 | O31: 4800
A32: 29 | B32: 观湖1 | C32: 29 | D32: 29 | E32: 深圳市龙华区第三幼儿园 | F32: 尹晓燕 | G32: 女 | H32: 保育员职业技能等级证 | I32: 保育员 | J32: 大班 | K32: 3 | L32: 4 | M32: 留任 | N32: 9600 | O32: 4800
A33: 30 | B33: 观湖1 | C33: 30 | D33: 30 | E33: 深圳市龙华区第三幼儿园 | F33: 刘雯 | G33: 女 | H33: 教师资格证 | I33: 专任教师 | J33: 小班 | K33: 4 | L33: 3 | M33: 留任 | N33: 7200 | O33: 3600
A34: 31 | B34: 观湖1 | C34: 31 | D34: 31 | E34: 深圳市龙华区第三幼儿园 | F34: 廖灵草 | G34: 女 | H34: 保育员上岗培训合格证 | I34: 保育员 | J34: 中班 | K34: 2 | L34: 3 | M34: 留任 | N34: 7200 | O34: 3600
A35: 32 | B35: 观湖1 | C35: 32 | D35: 32 | E35: 深圳市龙华区第三幼儿园 | F35: 高敏 | G35: 女 | H35: 教师资格证 | I35: 专任教师 | J35: 中班 | K35: 2 | L35: 3 | M35: 留任 | N35: 7200 | O35: 3600
A36: 33 | B36: 观湖1 | C36: 33 | D36: 33 | E36: 深圳市龙华区第三幼儿园 | F36: 梁珍珍 | G36: 女 | H36: 教师资格证 | I36: 专任教师 | J36: 大班 | K36: 3 | L36: 2 | M36: 留任 | N36: 4800 | O36: 2400
A37: 34 | B37: 观湖1 | C37: 34 | D37: 34 | E37: 深圳市龙华区第三幼儿园 | F37: 王琳 | G37: 女 | H37: 教师资格证 | I37: 专任教师 | J37: 大班 | K37: 2 | L37: 2 | M37: 留任 | N37: 4800 | O37: 2400
A38: 35 | B38: 观湖1 | C38: 35 | D38: 35 | E38: 深圳市龙华区第三幼儿园 | F38: 翟浩楚 | G38: 女 | H38: 教师资格证 | I38: 专任教师 | J38: 小班 | K38: 4 | L38: 2 | M38: 留任 | N38: 4800 | O38: 2400
A39: 36 | B39: 观湖1 | C39: 36 | D39: 36 | E39: 深圳市龙华区第三幼儿园 | F39: 徐婷 | G39: 女 | H39: 教师资格证 | I39: 专任教师 | J39: 中班 | K39: 2 | L39: 2 | M39: 留任 | N39: 4800 | O39: 2400
A40: 37 | B40: 观湖1 | C40: 37 | D40: 37 | E40: 深圳市龙华区第三幼儿园 | F40: 吴奇龙 | G40: 男 | H40: 教师资格证 | I40: 专任教师 | J40: 无 | K40: 无 | L40: 2 | M40: 留任 | N40: 4800 | O40: 2400
A41: 38 | B41: 观湖1 | C41: 38 | D41: 38 | E41: 深圳市龙华区第三幼儿园 | F41: 罗良炜 | G41: 男 | H41: 教师资格证 | I41: 专任教师 | J41: 无 | K41: 无 | L41: 2 | M41: 留任 | N41: 4800 | O41: 2400
A42: 39 | B42: 观湖1 | C42: 39 | D42: 39 | E42: 深圳市龙华区第三幼儿园 | F42: 张惜音 | G42: 女 | H42: 教师资格证 | I42: 副园长 | J42: 无 | K42: 无 | L42: 10 | M42: 留任 | N42: 24000 | O42: 12000
A43: 40 | B43: 观湖1 | C43: 40 | D43: 40 | E43: 深圳市龙华区第三幼儿园 | F43: 杨秋月 | G43: 女 | H43: 教师资格证 | I43: 学区专管员 | J43: 无 | K43: 无 | L43: 10 | M43: 留任 | N43: 24000 | O43: 12000
A44: 41 | B44: 观湖1 | C44: 41 | D44: 41 | E44: 深圳市龙华区第三幼儿园 | F44: 沈玉妍 | G44: 女 | H44: 教师资格证 | I44: 专任教师 | J44: 中班 | K44: 3 | L44: 1 | M44: 留任 | N44: 2400 | O44: 1200
A45: 42 | B45: 观湖1 | C45: 42 | D45: 42 | E45: 深圳市龙华区第三幼儿园 | F45: 吴宇新 | G45: 男 | H45: 教师资格证 | I45: 专任教师 | J45: 大班 | K45: 1 | L45: 1 | M45: 留任 | N45: 2400 | O45: 1200
A46: 43 | B46: 观湖1 | C46: 43 | D46: 43 | E46: 深圳市龙华区第三幼儿园 | F46: 钟雪花 | G46: 女 | H46: 保育员职业技能等级证 | I46: 保育员 | J46: 中班 | K46: 1 | L46: 1 | M46: 留任 | N46: 2400 | O46: 1200
A47: 44 | B47: 观湖1 | C47: 44 | D47: 44 | E47: 深圳市龙华区第三幼儿园 | F47: 杨娟 | G47: 女 | H47: 保育员职业技能等级证 | I47: 保育员 | J47: 中班 | K47: 4 | L47: 1 | M47: 留任 | N47: 2400 | O47: 1200
A48: 45 | B48: 观湖1 | C48: 45 | D48: 1 | E48: 深圳市龙华区鹭湖外国语小学附属观园幼儿园 | F48: 黄珊梅 | G48: 女 | H48: 教师资格证 | I48: 园长 | J48: 无 | K48: 无 | L48: 10 | M48: 留任 | N48: 24000 | O48: 12000 | P48: =SUMIF(E:E,E48,O:O) -> 301200
A49: 46 | B49: 观湖1 | C49: 46 | D49: 2 | E49: 深圳市龙华区鹭湖外国语小学附属观园幼儿园 | F49: 曾智英 | G49: 女 | H49: 教师资格证 | I49: 后勤副园长 | J49: 无 | K49: 无 | L49: 10 | M49: 留任 | N49: 24000 | O49: 12000
A50: 47 | B50: 观湖1 | C50: 47 | D50: 3 | E50: 深圳市龙华区鹭湖外国语小学附属观园幼儿园 | F50: 张艳 | G50: 女 | H50: 教师资格证 | I50: 教学副园长 | J50: 无 | K50: 无 | L50: 10 | M50: 留任 | N50: 24000 | O50: 12000
A51: 48 | B51: 观湖1 | C51: 48 | D51: 4 | E51: 深圳市龙华区鹭湖外国语小学附属观园幼儿园 | F51: 谢密丽 | G51: 女 | H51: 教师资格证 | I51: 后勤主任 | J51: 无 | K51: 无 | L51: 10 | M51: 留任 | N51: 24000 | O51: 12000
A52: 49 | B52: 观湖1 | C52: 49 | D52: 5 | E52: 深圳市龙华区鹭湖外国语小学附属观园幼儿园 | F52: 黄韶峰 | G52: 男 | H52: 保健人员上岗培训合格证 | I52: 保健员 | J52: 无 | K52: 无 | L52: 10 | M52: 留任 | N52: 24000 | O52: 12000
A53: 50 | B53: 观湖1 | C53: 50 | D53: 6 | E53: 深圳市龙华区鹭湖外国语小学附属观园幼儿园 | F53: 温小花 | G53: 女 | H53: 教师资格证 | I53: 保育员 | J53: 中班 | K53: 4 | L53: 10 | M53: 留任 | N53: 24000 | O53: 12000
A54: 51 | B54: 观湖1 | C54: 51 | D54: 7 | E54: 深圳市龙华区鹭湖外国语小学附属观园幼儿园 | F54: 薛晓玲 | G54: 女 | H54: 教师资格证 | I54: 专任教师 | J54: 小班 | K54: 2 | L54: 9 | M54: 留任 | N54: 21600 | O54: 10800
A55: 52 | B55: 观湖1 | C55: 52 | D55: 8 | E55: 深圳市龙华区鹭湖外国语小学附属观园幼儿园 | F55: 李仙华 | G55: 女 | H55: 教师资格证 | I55: 保育员 | J55: 中班 | K55: 1 | L55: 9 | M55: 留任 | N55: 21600 | O55: 10800
A56: 53 | B56: 观湖1 | C56: 53 | D56: 9 | E56: 深圳市龙华区鹭湖外国语小学附属观园幼儿园 | F56: 徐玉娟 | G56: 女 | H56: 保健人员上岗培训合格证 | I56: 保健员 | J56: 无 | K56: 无 | L56: 9 | M56: 留任 | N56: 21600 | O56: 10800
A57: 54 | B57: 观湖1 | C57: 54 | D57: 10 | E57: 深圳市龙华区鹭湖外国语小学附属观园幼儿园 | F57: 徐春华 | G57: 女 | H57: 教师资格证 | I57: 专任教师 | J57: 大班 | K57: 5 | L57: 9 | M57: 留任 | N57: 21600 | O57: 10800
A58: 55 | B58: 观湖1 | C58: 55 | D58: 11 | E58: 深圳市龙华区鹭湖外国语小学附属观园幼儿园 | F58: 余丽 | G58: 女 | H58: 教师资格证 | I58: 专任教师 | J58: 小班 | K58: 4 | L58: 8 | M58: 留任 | N58: 19200 | O58: 9600
A59: 56 | B59: 观湖1 | C59: 56 | D59: 12 | E59: 深圳市龙华区鹭湖外国语小学附属观园幼儿园 | F59: 陈玲 | G59: 女 | H59: 教师资格证 | I59: 专任教师 | J59: 中班 | K59: 3 | L59: 7 | M59: 留任 | N59: 16800 | O59: 8400
A60: 57 | B60: 观湖1 | C60: 57 | D60: 13 | E60: 深圳市龙华区鹭湖外国语小学附属观园幼儿园 | F60: 韦叶 | G60: 女 | H60: 教师资格证 | I60: 专任教师 | J60: 小班 | K60: 3 | L60: 7 | M60: 留任 | N60: 16800 | O60: 8400
A61: 58 | B61: 观湖1 | C61: 58 | D61: 14 | E61: 深圳市龙华区鹭湖外国语小学附属观园幼儿园 | F61: 肖志青 | G61: 女 | H61: 保育员上岗培训合格证 | I61: 保育员 | J61: 小班 | K61: 1 | L61: 7 | M61: 留任 | N61: 16800 | O61: 8400
A62: 59 | B62: 观湖1 | C62: 59 | D62: 15 | E62: 深圳市龙华区鹭湖外国语小学附属观园幼儿园 | F62: 林妙芝 | G62: 女 | H62: 教师资格证 | I62: 专任教师 | J62: 无 | K62: 无 | L62: 7 | M62: 留任 | N62: 16800 | O62: 8400
A63: 60 | B63: 观湖1 | C63: 60 | D63: 16 | E63: 深圳市龙华区鹭湖外国语小学附属观园幼儿园 | F63: 彭宇虹 | G63: 女 | H63: 教师资格证 | I63: 专任教师 | J63: 小班 | K63: 5 | L63: 6 | M63: 留任 | N63: 14400 | O63: 7200
A64: 61 | B64: 观湖1 | C64: 61 | D64: 17 | E64: 深圳市龙华区鹭湖外国语小学附属观园幼儿园 | F64: 冯淑云 | G64: 女 | H64: 保育员上岗培训合格证 | I64: 保育员 | J64: 小班 | K64: 3 | L64: 6 | M64: 留任 | N64: 14400 | O64: 7200
A65: 62 | B65: 观湖1 | C65: 62 | D65: 18 | E65: 深圳市龙华区鹭湖外国语小学附属观园幼儿园 | F65: 宋薇 | G65: 女 | H65: 教师资格证 | I65: 专任教师 | J65: 中班 | K65: 2 | L65: 6 | M65: 留任 | N65: 14400 | O65: 7200
A66: 63 | B66: 观湖1 | C66: 63 | D66: 19 | E66: 深圳市龙华区鹭湖外国语小学附属观园幼儿园 | F66: 邓柳琴 | G66: 女 | H66: 保育员上岗培训合格证 | I66: 保育员 | J66: 大班 | K66: 1 | L66: 6 | M66: 留任 | N66: 14400 | O66: 7200
A67: 64 | B67: 观湖1 | C67: 64 | D67: 20 | E67: 深圳市龙华区鹭湖外国语小学附属观园幼儿园 | F67: 刘江兰 | G67: 女 | H67: 保育员上岗培训合格证 | I67: 保育员 | J67: 中班 | K67: 6 | L67: 6 | M67: 留任 | N67: 14400 | O67: 7200
A68: 65 | B68: 观湖1 | C68: 65 | D68: 21 | E68: 深圳市龙华区鹭湖外国语小学附属观园幼儿园 | F68: 李丽红 | G68: 女 | H68: 保健人员上岗培训合格证 | I68: 保健医生 | J68: 无 | K68: 无 | L68: 5 | M68: 留任 | N68: 12000 | O68: 6000
A69: 66 | B69: 观湖1 | C69: 66 | D69: 22 | E69: 深圳市龙华区鹭湖外国语小学附属观园幼儿园 | F69: 柴楠 | G69: 女 | H69: 教师资格证 | I69: 专任教师 | J69: 大班 | K69: 1 | L69: 5 | M69: 留任 | N69: 12000 | O69: 6000
A70: 67 | B70: 观湖1 | C70: 67 | D70: 23 | E70: 深圳市龙华区鹭湖外国语小学附属观园幼儿园 | F70: 康婷 | G70: 女 | H70: 教师资格证 | I70: 专任教师 | J70: 中班 | K70: 5 | L70: 5 | M70: 留任 | N70: 12000 | O70: 6000
A71: 68 | B71: 观湖1 | C71: 68 | D71: 24 | E71: 深圳市龙华区鹭湖外国语小学附属观园幼儿园 | F71: 胡东平 | G71: 女 | H71: 教师资格证 | I71: 专任教师 | J71: 小班 | K71: 1 | L71: 5 | M71: 留任 | N71: 12000 | O71: 6000
A72: 69 | B72: 观湖1 | C72: 69 | D72: 25 | E72: 深圳市龙华区鹭湖外国语小学附属观园幼儿园 | F72: 曾燕翠 | G72: 女 | H72: 保育员上岗培训合格证 | I72: 保育员 | J72: 大班 | K72: 3 | L72: 5 | M72: 留任 | N72: 12000 | O72: 6000
A73: 70 | B73: 观湖1 | C73: 70 | D73: 26 | E73: 深圳市龙华区鹭湖外国语小学附属观园幼儿园 | F73: 张吴镝 | G73: 女 | H73: 教师资格证 | I73: 专任教师 | J73: 中班 | K73: 4 | L73: 4 | M73: 留任 | N73: 9600 | O73: 4800
A74: 71 | B74: 观湖1 | C74: 71 | D74: 27 | E74: 深圳市龙华区鹭湖外国语小学附属观园幼儿园 | F74: 戴杏芳 | G74: 女 | H74: 保育员上岗培训合格证 | I74: 保育员 | J74: 大班 | K74: 4 | L74: 4 | M74: 留任 | N74: 9600 | O74: 4800
A75: 72 | B75: 观湖1 | C75: 72 | D75: 28 | E75: 深圳市龙华区鹭湖外国语小学附属观园幼儿园 | F75: 杨慧玲 | G75: 女 | H75: 教师资格证 | I75: 专任教师 | J75: 大班 | K75: 5 | L75: 4 | M75: 留任 | N75: 9600 | O75: 4800
A76: 73 | B76: 观湖1 | C76: 73 | D76: 29 | E76: 深圳市龙华区鹭湖外国语小学附属观园幼儿园 | F76: 张秋霞 | G76: 女 | H76: 教师资格证 | I76: 专任教师 | J76: 大班 | K76: 2 | L76: 4 | M76: 留任 | N76: 9600 | O76: 4800
A77: 74 | B77: 观湖1 | C77: 74 | D77: 30 | E77: 深圳市龙华区鹭湖外国语小学附属观园幼儿园 | F77: 李惜凤 | G77: 女 | H77: 教师资格证 | I77: 专任教师 | J77: 大班 | K77: 4 | L77: 4 | M77: 留任 | N77: 9600 | O77: 4800
A78: 75 | B78: 观湖1 | C78: 75 | D78: 31 | E78: 深圳市龙华区鹭湖外国语小学附属观园幼儿园 | F78: 俞红丽 | G78: 女 | H78: 保育员上岗培训合格证 | I78: 保育员 | J78: 大班 | K78: 5 | L78: 4 | M78: 留任 | N78: 9600 | O78: 4800
A79: 76 | B79: 观湖1 | C79: 76 | D79: 32 | E79: 深圳市龙华区鹭湖外国语小学附属观园幼儿园 | F79: 黄露苇 | G79: 女 | H79: 教师资格证 | I79: 专任教师 | J79: 小班 | K79: 5 | L79: 4 | M79: 留任 | N79: 9600 | O79: 4800
A80: 77 | B80: 观湖1 | C80: 77 | D80: 33 | E80: 深圳市龙华区鹭湖外国语小学附属观园幼儿园 | F80: 蒲娇 | G80: 女 | H80: 教师资格证 | I80: 专任教师 | J80: 中班 | K80: 6 | L80: 4 | M80: 留任 | N80: 9600 | O80: 4800
A81: 78 | B81: 观湖1 | C81: 78 | D81: 34 | E81: 深圳市龙华区鹭湖外国语小学附属观园幼儿园 | F81: 刘良好 | G81: 女 | H81: 教师资格证 | I81: 专任教师 | J81: 大班 | K81: 3 | L81: 4 | M81: 留任 | N81: 9600 | O81: 4800
A82: 79 | B82: 观湖1 | C82: 79 | D82: 35 | E82: 深圳市龙华区鹭湖外国语小学附属观园幼儿园 | F82: 刘欢 | G82: 女 | H82: 保育员上岗培训合格证 | I82: 保育员 | J82: 中班 | K82: 2 | L82: 3 | M82: 留任 | N82: 7200 | O82: 3600
A83: 80 | B83: 观湖1 | C83: 80 | D83: 36 | E83: 深圳市龙华区鹭湖外国语小学附属观园幼儿园 | F83: 张甜 | G83: 女 | H83: 教师资格证 | I83: 专任教师 | J83: 小班 | K83: 5 | L83: 3 | M83: 留任 | N83: 7200 | O83: 3600
A84: 81 | B84: 观湖1 | C84: 81 | D84: 37 | E84: 深圳市龙华区鹭湖外国语小学附属观园幼儿园 | F84: 严思 | G84: 女 | H84: 教师资格证 | I84: 专任教师 | J84: 中班 | K84: 6 | L84: 3 | M84: 留任 | N84: 7200 | O84: 3600
A85: 82 | B85: 观湖1 | C85: 82 | D85: 38 | E85: 深圳市龙华区鹭湖外国语小学附属观园幼儿园 | F85: 申凤美 | G85: 女 | H85: 保育员上岗培训合格证 | I85: 保育员 | J85: 小班 | K85: 2 | L85: 3 | M85: 留任 | N85: 7200 | O85: 3600
A86: 83 | B86: 观湖1 | C86: 83 | D86: 39 | E86: 深圳市龙华区鹭湖外国语小学附属观园幼儿园 | F86: 张静 | G86: 女 | H86: 教师资格证 | I86: 专任教师 | J86: 大班 | K86: 3 | L86: 3 | M86: 留任 | N86: 7200 | O86: 3600
A87: 84 | B87: 观湖1 | C87: 84 | D87: 40 | E87: 深圳市龙华区鹭湖外国语小学附属观园幼儿园 | F87: 熊建楠 | G87: 男 | H87: 教师资格证 | I87: 专任教师 | J87: 中班 | K87: 3 | L87: 2 | M87: 留任 | N87: 4800 | O87: 2400
A88: 85 | B88: 观湖1 | C88: 85 | D88: 41 | E88: 深圳市龙华区鹭湖外国语小学附属观园幼儿园 | F88: 黄琳晓 | G88: 女 | H88: 教师资格证 | I88: 专任教师 | J88: 中班 | K88: 3 | L88: 2 | M88: 留任 | N88: 4800 | O88: 2400
A89: 86 | B89: 观湖1 | C89: 86 | D89: 42 | E89: 深圳市龙华区鹭湖外国语小学附属观园幼儿园 | F89: 赖梦萍 | G89: 女 | H89: 教师资格证 | I89: 专任教师 | J89: 大班 | K89: 2 | L89: 2 | M89: 留任 | N89: 4800 | O89: 2400
A90: 87 | B90: 观湖1 | C90: 87 | D90: 43 | E90: 深圳市龙华区鹭湖外国语小学附属观园幼儿园 | F90: 李玉婷 | G90: 女 | H90: 教师资格证 | I90: 专任教师 | J90: 中班 | K90: 2 | L90: 1 | M90: 留任 | N90: 2400 | O90: 1200
A91: 88 | B91: 观湖1 | C91: 88 | D91: 44 | E91: 深圳市龙华区鹭湖外国语小学附属观园幼儿园 | F91: 张月英 | G91: 女 | H91: 保育员职业技能等级证 | I91: 保育员 | J91: 小班 | K91: 5 | L91: 1 | M91: 留任 | N91: 2400 | O91: 1200
A92: 89 | B92: 观湖1 | C92: 89 | D92: 45 | E92: 深圳市龙华区鹭湖外国语小学附属观园幼儿园 | F92: 陈勇娟 | G92: 女 | H92: 保育员职业技能等级证 | I92: 保育员 | J92: 中班 | K92: 3 | L92: 1 | M92: 留任 | N92: 2400 | O92: 1200
A93: 90 | B93: 观湖1 | C93: 90 | D93: 46 | E93: 深圳市龙华区鹭湖外国语小学附属观园幼儿园 | F93: 张芳 | G93: 女 | H93: 教师资格证 | I93: 专任教师 | J93: 大班 | K93: 1 | L93: 1 | M93: 留任 | N93: 2400 | O93: 1200
A94: 91 | B94: 观湖1 | C94: 91 | D94: 47 | E94: 深圳市龙华区鹭湖外国语小学附属观园幼儿园 | F94: 钟爱香 | G94: 女 | H94: 保育员职业技能等级证 | I94: 保育员 | J94: 小班 | K94: 4 | L94: 2 | M94: 留任 | N94: 4800 | O94: 2400
A95: 92 | B95: 观湖1 | C95: 92 | D95: 48 | E95: 深圳市龙华区鹭湖外国语小学附属观园幼儿园 | F95: 王祉懿 | G95: 女 | H95: 教师资格证 | I95: 保育员 | J95: 小班 | K95: 1 | L95: 1 | M95: 留任 | N95: 2400 | O95: 1200
A96: 93 | B96: 观湖1 | C96: 93 | D96: 1 | E96: 深圳市龙华区外国语学校附属天悦湾幼儿园 | F96: 王锦莉 | G96: 女 | H96: 教师资格证 | I96: 园长 | J96: 无 | K96: 无 | L96: 10 | M96: 留任 | N96: 24000 | O96: 12000 | P96: =SUMIF(E:O,E96,O:O) -> 170400
A97: 94 | B97: 观湖1 | C97: 94 | D97: 2 | E97: 深圳市龙华区外国语学校附属天悦湾幼儿园 | F97: 林晓霞 | G97: 女 | H97: 教师资格证 | I97: 后勤副园长 | J97: 无 | K97: 无 | L97: 10 | M97: 留任 | N97: 24000 | O97: 12000
A98: 95 | B98: 观湖1 | C98: 95 | D98: 3 | E98: 深圳市龙华区外国语学校附属天悦湾幼儿园 | F98: 冯小妹 | G98: 女 | H98: 教师资格证 | I98: 专任教师 | J98: 无 | K98: 无 | L98: 10 | M98: 留任 | N98: 24000 | O98: 12000
A99: 96 | B99: 观湖1 | C99: 96 | D99: 4 | E99: 深圳市龙华区外国语学校附属天悦湾幼儿园 | F99: 吕美静 | G99: 女 | H99: 教师资格证 | I99: 专任教师 | J99: 无 | K99: 无 | L99: 10 | M99: 留任 | N99: 24000 | O99: 12000
A100: 97 | B100: 观湖1 | C100: 97 | D100: 5 | E100: 深圳市龙华区外国语学校附属天悦湾幼儿园 | F100: 甘爱浓 | G100: 女 | H100: 教师资格证 | I100: 专任教师 | J100: 大班 | K100: 2 | L100: 9 | M100: 留任 | N100: 21600 | O100: 10800
A101: 98 | B101: 观湖1 | C101: 98 | D101: 6 | E101: 深圳市龙华区外国语学校附属天悦湾幼儿园 | F101: 宋友娥 | G101: 女 | H101: 保育员职业技能等级证 | I101: 保育员 | J101: 小班 | K101: 2 | L101: 8 | M101: 留任 | N101: 19200 | O101: 9600
A102: 99 | B102: 观湖1 | C102: 99 | D102: 7 | E102: 深圳市龙华区外国语学校附属天悦湾幼儿园 | F102: 陈苑秋 | G102: 女 | H102: 保育员职业技能等级证 | I102: 保育员 | J102: 小班 | K102: 1 | L102: 7 | M102: 留任 | N102: 16800 | O102: 8400
A103: 100 | B103: 观湖1 | C103: 100 | D103: 8 | E103: 深圳市龙华区外国语学校附属天悦湾幼儿园 | F103: 田秀花 | G103: 女 | H103: 保育员职业技能等级证 | I103: 保育员 | J103: 中班 | K103: 1 | L103: 6 | M103: 留任 | N103: 14400 | O103: 7200
A104: 101 | B104: 观湖1 | C104: 101 | D104: 9 | E104: 深圳市龙华区外国语学校附属天悦湾幼儿园 | F104: 钟文萍 | G104: 女 | H104: 教师资格证 | I104: 专任教师 | J104: 中班 | K104: 2 | L104: 5 | M104: 留任 | N104: 12000 | O104: 6000
A105: 102 | B105: 观湖1 | C105: 102 | D105: 10 | E105: 深圳市龙华区外国语学校附属天悦湾幼儿园 | F105: 王淳 | G105: 女 | H105: 教师资格证 | I105: 专任教师 | J105: 无 | K105: 无 | L105: 5 | M105: 留任 | N105: 12000 | O105: 6000
A106: 103 | B106: 观湖1 | C106: 103 | D106: 11 | E106: 深圳市龙华区外国语学校附属天悦湾幼儿园 | F106: 蒲宝芹 | G106: 女 | H106: 教师资格证 | I106: 专任教师 | J106: 中班 | K106: 1 | L106: 5 | M106: 留任 | N106: 12000 | O106: 6000
A107: 104 | B107: 观湖1 | C107: 104 | D107: 12 | E107: 深圳市龙华区外国语学校附属天悦湾幼儿园 | F107: 陆卓珊 | G107: 女 | H107: 保育员职业技能等级证 | I107: 保育员 | J107: 大班 | K107: 1 | L107: 4 | M107: 留任 | N107: 9600 | O107: 4800
A108: 105 | B108: 观湖1 | C108: 105 | D108: 13 | E108: 深圳市龙华区外国语学校附属天悦湾幼儿园 | F108: 黄灵滨 | G108: 男 | H108: 教师资格证 | I108: 后勤主任 | J108: 无 | K108: 无 | L108: 4 | M108: 留任 | N108: 9600 | O108: 4800
A109: 106 | B109: 观湖1 | C109: 106 | D109: 14 | E109: 深圳市龙华区外国语学校附属天悦湾幼儿园 | F109: 黄绮彤 | G109: 女 | H109: 保育员职业技能等级证 | I109: 保育员 | J109: 大班 | K109: 3 | L109: 4 | M109: 留任 | N109: 9600 | O109: 4800
A110: 107 | B110: 观湖1 | C110: 107 | D110: 15 | E110: 深圳市龙华区外国语学校附属天悦湾幼儿园 | F110: 幸倩 | G110: 女 | H110: 教师资格证 | I110: 专任教师 | J110: 中班 | K110: 3 | L110: 4 | M110: 留任 | N110: 9600 | O110: 4800
A111: 108 | B111: 观湖1 | C111: 108 | D111: 16 | E111: 深圳市龙华区外国语学校附属天悦湾幼儿园 | F111: 陈恩玉 | G111: 女 | H111: 教师资格证 | I111: 专任教师 | J111: 大班 | K111: 1 | L111: 4 | M111: 留任 | N111: 9600 | O111: 4800
A112: 109 | B112: 观湖1 | C112: 109 | D112: 17 | E112: 深圳市龙华区外国语学校附属天悦湾幼儿园 | F112: 陈婧 | G112: 女 | H112: 幼儿园教师资格证 | I112: 专任教师 | J112: 大班 | K112: 3 | L112: 4 | M112: 留任 | N112: 9600 | O112: 4800
A113: 110 | B113: 观湖1 | C113: 110 | D113: 18 | E113: 深圳市龙华区外国语学校附属天悦湾幼儿园 | F113: 陈冬红 | G113: 女 | H113: 教师资格证 | I113: 专任教师 | J113: 大班 | K113: 1 | L113: 3 | M113: 留任 | N113: 7200 | O113: 3600
A114: 111 | B114: 观湖1 | C114: 111 | D114: 19 | E114: 深圳市龙华区外国语学校附属天悦湾幼儿园 | F114: 陈子凤 | G114: 女 | H114: 教师资格证 | I114: 专任教师 | J114: 大班 | K114: 3 | L114: 3 | M114: 留任 | N114: 7200 | O114: 3600
A115: 112 | B115: 观湖1 | C115: 112 | D115: 20 | E115: 深圳市龙华区外国语学校附属天悦湾幼儿园 | F115: 江燕玲 | G115: 女 | H115: 保育员职业技能等级证 | I115: 保育员 | J115: 中班 | K115: 2 | L115: 3 | M115: 留任 | N115: 7200 | O115: 3600
A116: 113 | B116: 观湖1 | C116: 113 | D116: 21 | E116: 深圳市龙华区外国语学校附属天悦湾幼儿园 | F116: 邱晓莲 | G116: 女 | H116: 教师资格证 | I116: 专任教师 | J116: 中班 | K116: 2 | L116: 3 | M116: 留任 | N116: 7200 | O116: 3600
A117: 114 | B117: 观湖1 | C117: 114 | D117: 22 | E117: 深圳市龙华区外国语学校附属天悦湾幼儿园 | F117: 王倩 | G117: 女 | H117: 教师资格证 | I117: 专任教师 | J117: 大班 | K117: 1 | L117: 3 | M117: 留任 | N117: 7200 | O117: 3600
A118: 115 | B118: 观湖1 | C118: 115 | D118: 23 | E118: 深圳市龙华区外国语学校附属天悦湾幼儿园 | F118: 李天卓 | G118: 女 | H118: 保健人员上岗培训合格证 | I118: 保健医生 | J118: 无 | K118: 无 | L118: 2 | M118: 留任 | N118: 4800 | O118: 2400
A119: 116 | B119: 观湖1 | C119: 116 | D119: 24 | E119: 深圳市龙华区外国语学校附属天悦湾幼儿园 | F119: 杨金燕 | G119: 女 | H119: 幼儿园教师资格证 | I119: 专任教师 | J119: 大班 | K119: 1 | L119: 2 | M119: 留任 | N119: 4800 | O119: 2400
A120: 117 | B120: 观湖1 | C120: 117 | D120: 25 | E120: 深圳市龙华区外国语学校附属天悦湾幼儿园 | F120: 赵丽虹 | G120: 女 | H120: 幼儿园教师资格证 | I120: 专任教师 | J120: 小班 | K120: 2 | L120: 2 | M120: 留任 | N120: 4800 | O120: 2400
A121: 118 | B121: 观湖1 | C121: 118 | D121: 26 | E121: 深圳市龙华区外国语学校附属天悦湾幼儿园 | F121: 苏伟霞 | G121: 女 | H121: 幼儿园教师资格证 | I121: 专任教师 | J121: 小班 | K121: 2 | L121: 2 | M121: 留任 | N121: 4800 | O121: 2400
A122: 119 | B122: 观湖1 | C122: 119 | D122: 27 | E122: 深圳市龙华区外国语学校附属天悦湾幼儿园 | F122: 李小静 | G122: 女 | H122: 保育员职业技能等级证 | I122: 保育员 | J122: 大班 | K122: 2 | L122: 2 | M122: 留任 | N122: 4800 | O122: 2400
A123: 120 | B123: 观湖1 | C123: 120 | D123: 28 | E123: 深圳市龙华区外国语学校附属天悦湾幼儿园 | F123: 陈丽丽 | G123: 女 | H123: 幼儿园教师资格证 | I123: 保育员 | J123: 中班 | K123: 3 | L123: 2 | M123: 留任 | N123: 4800 | O123: 2400
A124: 121 | B124: 观湖1 | C124: 121 | D124: 29 | E124: 深圳市龙华区外国语学校附属天悦湾幼儿园 | F124: 徐燕丽 | G124: 女 | H124: 保育员职业技能等级证 | I124: 保育员 | J124: 中班 | K124: 3 | L124: 2 | M124: 留任 | N124: 4800 | O124: 2400
A125: 122 | B125: 观湖1 | C125: 122 | D125: 30 | E125: 深圳市龙华区外国语学校附属天悦湾幼儿园 | F125: 黄安怡 | G125: 女 | H125: 教师资格证 | I125: 专任教师 | J125: 中班 | K125: 1 | L125: 2 | M125: 留任 | N125: 4800 | O125: 2400
A126: 123 | B126: 观湖1 | C126: 123 | D126: 31 | E126: 深圳市龙华区外国语学校附属天悦湾幼儿园 | F126: 林锦群 | G126: 女 | H126: 教师资格证 | I126: 专任教师 | J126: 大班 | K126: 2 | L126: 1 | M126: 留任 | N126: 2400 | O126: 1200
A127: 124 | B127: 观湖1 | C127: 124 | D127: 32 | E127: 深圳市龙华区外国语学校附属天悦湾幼儿园 | F127: 张丽娟 | G127: 女 | H127: 保健人员上岗培训合格证 | I127: 专任教师 | J127: 无 | K127: 无 | L127: 1 | M127: 留任 | N127: 2400 | O127: 1200
A128: 125 | B128: 观湖1 | C128: 125 | D128: 1 | E128: 深圳市龙华区鹭湖外国语小学附属懿花园幼儿园 | F128: 鲍影 | G128: 女 | H128: 教师资格证 | I128: 园长 | J128: 无 | K128: 无 | L128: 10 | M128: 留任 | N128: 24000 | O128: 12000 | P128: =SUMIF(E:O,E128,O:O) -> 147600
A129: 126 | B129: 观湖1 | C129: 126 | D129: 2 | E129: 深圳市龙华区鹭湖外国语小学附属懿花园幼儿园 | F129: 曾燕 | G129: 女 | H129: 教师资格证 | I129: 后勤副园长 | J129: 无 | K129: 无 | L129: 10 | M129: 留任 | N129: 24000 | O129: 12000
A130: 127 | B130: 观湖1 | C130: 127 | D130: 3 | E130: 深圳市龙华区鹭湖外国语小学附属懿花园幼儿园 | F130: 娄晓薇 | G130: 女 | H130: 教师资格证 | I130: 教学副园长 | J130: 无 | K130: 无 | L130: 4 | M130: 留任 | N130: 9600 | O130: 4800
A131: 128 | B131: 观湖1 | C131: 128 | D131: 4 | E131: 深圳市龙华区鹭湖外国语小学附属懿花园幼儿园 | F131: 黄沙沙 | G131: 女 | H131: 教师资格证 | I131: 办公室主任 | J131: 无 | K131: 无 | L131: 10 | M131: 留任 | N131: 24000 | O131: 12000
A132: 129 | B132: 观湖1 | C132: 129 | D132: 5 | E132: 深圳市龙华区鹭湖外国语小学附属懿花园幼儿园 | F132: 张小娟 | G132: 女 | H132: 教师资格证 | I132: 专任教师 | J132: 大班 | K132: 1 | L132: 8 | M132: 留任 | N132: 19200 | O132: 9600
A133: 130 | B133: 观湖1 | C133: 130 | D133: 6 | E133: 深圳市龙华区鹭湖外国语小学附属懿花园幼儿园 | F133: 何映婷 | G133: 女 | H133: 教师资格证 | I133: 专任教师 | J133: 小班 | K133: 2 | L133: 7 | M133: 留任 | N133: 16800 | O133: 8400
A134: 131 | B134: 观湖1 | C134: 131 | D134: 7 | E134: 深圳市龙华区鹭湖外国语小学附属懿花园幼儿园 | F134: 潘凯静 | G134: 女 | H134: 教师资格证 | I134: 专任教师 | J134: 大班 | K134: 2 | L134: 6 | M134: 留任 | N134: 14400 | O134: 7200
A135: 132 | B135: 观湖1 | C135: 132 | D135: 8 | E135: 深圳市龙华区鹭湖外国语小学附属懿花园幼儿园 | F135: 江雨 | G135: 女 | H135: 教师资格证 | I135: 专任教师 | J135: 小小班 | K135: 1 | L135: 6 | M135: 留任 | N135: 14400 | O135: 7200
A136: 133 | B136: 观湖1 | C136: 133 | D136: 9 | E136: 深圳市龙华区鹭湖外国语小学附属懿花园幼儿园 | F136: 韦李晶 | G136: 女 | H136: 保育员上岗培训合格证 | I136: 保育员 | J136: 小班 | K136: 2 | L136: 6 | M136: 留任 | N136: 14400 | O136: 7200
A137: 134 | B137: 观湖1 | C137: 134 | D137: 10 | E137: 深圳市龙华区鹭湖外国语小学附属懿花园幼儿园 | F137: 潘巧玲 | G137: 女 | H137: 教师资格证 | I137: 专任教师 | J137: 中班 | K137: 2 | L137: 5 | M137: 留任 | N137: 12000 | O137: 6000
A138: 135 | B138: 观湖1 | C138: 135 | D138: 11 | E138: 深圳市龙华区鹭湖外国语小学附属懿花园幼儿园 | F138: 刘元芳 | G138: 女 | H138: 保育员上岗培训合格证 | I138: 保育员 | J138: 中班 | K138: 1 | L138: 4 | M138: 留任 | N138: 9600 | O138: 4800
A139: 136 | B139: 观湖1 | C139: 136 | D139: 12 | E139: 深圳市龙华区鹭湖外国语小学附属懿花园幼儿园 | F139: 黄淳绢 | G139: 女 | H139: 教师资格证 | I139: 专任教师 | J139: 中班 | K139: 2 | L139: 4 | M139: 留任 | N139: 9600 | O139: 4800
A140: 137 | B140: 观湖1 | C140: 137 | D140: 13 | E140: 深圳市龙华区鹭湖外国语小学附属懿花园幼儿园 | F140: 黄 珍 | G140: 女 | H140: 保育员上岗培训合格证 | I140: 保育员 | J140: 小小班 | K140: 1 | L140: 4 | M140: 留任 | N140: 9600 | O140: 4800
A141: 138 | B141: 观湖1 | C141: 138 | D141: 14 | E141: 深圳市龙华区鹭湖外国语小学附属懿花园幼儿园 | F141: 黄薇 | G141: 女 | H141: 教师资格证 | I141: 专任教师 | J141: 小班 | K141: 1 | L141: 3 | M141: 留任 | N141: 7200 | O141: 3600
A142: 139 | B142: 观湖1 | C142: 139 | D142: 15 | E142: 深圳市龙华区鹭湖外国语小学附属懿花园幼儿园 | F142: 徐艳花 | G142: 女 | H142: 教师资格证 | I142: 专任教师 | J142: 大班 | K142: 2 | L142: 3 | M142: 留任 | N142: 7200 | O142: 3600
A143: 140 | B143: 观湖1 | C143: 140 | D143: 16 | E143: 深圳市龙华区鹭湖外国语小学附属懿花园幼儿园 | F143: 符小平 | G143: 女 | H143: 教师资格证 | I143: 专任教师 | J143: 小小班 | K143: 2 | L143: 3 | M143: 留任 | N143: 7200 | O143: 3600
A144: 141 | B144: 观湖1 | C144: 141 | D144: 17 | E144: 深圳市龙华区鹭湖外国语小学附属懿花园幼儿园 | F144: 王芬 | G144: 女 | H144: 保育员上岗培训合格证 | I144: 保育员 | J144: 小小班 | K144: 2 | L144: 3 | M144: 留任 | N144: 7200 | O144: 3600
A145: 142 | B145: 观湖1 | C145: 142 | D145: 18 | E145: 深圳市龙华区鹭湖外国语小学附属懿花园幼儿园 | F145: 谢树玲 | G145: 女 | H145: 保育员职业技能等级证 | I145: 保育员 | J145: 中班 | K145: 3 | L145: 3 | M145: 留任 | N145: 7200 | O145: 3600
A146: 143 | B146: 观湖1 | C146: 143 | D146: 19 | E146: 深圳市龙华区鹭湖外国语小学附属懿花园幼儿园 | F146: 杨梦秋 | G146: 女 | H146: 教师资格证 | I146: 专任教师 | J146: 小班 | K146: 1 | L146: 2 | M146: 留任 | N146: 4800 | O146: 2400
A147: 144 | B147: 观湖1 | C147: 144 | D147: 20 | E147: 深圳市龙华区鹭湖外国语小学附属懿花园幼儿园 | F147: 陈海婷 | G147: 女 | H147: 教师资格证 | I147: 专任教师 | J147: 小小班 | K147: 1 | L147: 2 | M147: 留任 | N147: 4800 | O147: 2400
A148: 145 | B148: 观湖1 | C148: 145 | D148: 21 | E148: 深圳市龙华区鹭湖外国语小学附属懿花园幼儿园 | F148: 邹玄子 | G148: 女 | H148: 教师资格证 | I148: 专任教师 | J148: 中班 | K148: 3 | L148: 2 | M148: 留任 | N148: 4800 | O148: 2400
A149: 146 | B149: 观湖1 | C149: 146 | D149: 22 | E149: 深圳市龙华区鹭湖外国语小学附属懿花园幼儿园 | F149: 金海艳 | G149: 女 | H149: 保育员职业技能等级证 | I149: 保育员 | J149: 小班 | K149: 1 | L149: 7 | M149: 留任 | N149: 16800 | O149: 8400
A150: 147 | B150: 观湖1 | C150: 147 | D150: 23 | E150: 深圳市龙华区鹭湖外国语小学附属懿花园幼儿园 | F150: 余环英 | G150: 女 | H150: 保育员职业技能等级证 | I150: 保育员 | J150: 大班 | K150: 1 | L150: 2 | M150: 留任 | N150: 4800 | O150: 2400
A151: 148 | B151: 观湖1 | C151: 148 | D151: 24 | E151: 深圳市龙华区鹭湖外国语小学附属懿花园幼儿园 | F151: 袁雯 | G151: 女 | H151: 保育员职业技能等级证 | I151: 保育员 | J151: 大班 | K151: 2 | L151: 2 | M151: 留任 | N151: 4800 | O151: 2400
A152: 149 | B152: 观湖1 | C152: 149 | D152: 25 | E152: 深圳市龙华区鹭湖外国语小学附属懿花园幼儿园 | F152: 曹烨红 | G152: 女 | H152: 教师资格证 | I152: 专任教师 | J152: 中班 | K152: 1 | L152: 5 | M152: 留任 | N152: 12000 | O152: 6000
A153: 150 | B153: 观湖1 | C153: 150 | D153: 26 | E153: 深圳市龙华区鹭湖外国语小学附属懿花园幼儿园 | F153: 柯文静 | G153: 女 | H153: 教师资格证 | I153: 专任教师 | J153: 中班 | K153: 1 | L153: 1 | M153: 留任 | N153: 2400 | O153: 1200
A154: 151 | B154: 观湖1 | C154: 151 | D154: 27 | E154: 深圳市龙华区鹭湖外国语小学附属懿花园幼儿园 | F154: 刘明友 | G154: 女 | H154: 保健人员上岗培训合格证 | I154: 保健医生 | J154: 无 | K154: 无 | L154: 1 | M154: 留任 | N154: 2400 | O154: 1200
A155: 152 | B155: 观湖1 | C155: 152 | D155: 1 | E155: 深圳市龙华区鹭湖外国语小学附属振鹭幼儿园 | F155: 魏钰 | G155: 女 | H155: 教师资格证 | I155: 园长 | J155: 无 | K155: 无 | L155: 10 | M155: 留任 | N155: 24000 | O155: 12000 | P155: =SUMIF(E:O,E155,O:O) -> 139200
A156: 153 | B156: 观湖1 | C156: 153 | D156: 2 | E156: 深圳市龙华区鹭湖外国语小学附属振鹭幼儿园 | F156: 胡小玲 | G156: 女 | H156: 教师资格证 | I156: 专任教师 | J156: 小班 | K156: 2 | L156: 10 | M156: 留任 | N156: 24000 | O156: 12000
A157: 154 | B157: 观湖1 | C157: 154 | D157: 3 | E157: 深圳市龙华区鹭湖外国语小学附属振鹭幼儿园 | F157: 董小会 | G157: 女 | H157: 教师资格证 | I157: 后勤副园长 | J157: 无 | K157: 无 | L157: 10 | M157: 留任 | N157: 24000 | O157: 12000
A158: 155 | B158: 观湖1 | C158: 155 | D158: 4 | E158: 深圳市龙华区鹭湖外国语小学附属振鹭幼儿园 | F158: 郑淑娟 | G158: 女 | H158: 教师资格证 | I158: 专任教师 | J158: 大班 | K158: 1 | L158: 10 | M158: 留任 | N158: 24000 | O158: 12000
A159: 156 | B159: 观湖1 | C159: 156 | D159: 5 | E159: 深圳市龙华区鹭湖外国语小学附属振鹭幼儿园 | F159: 郑楚玲 | G159: 女 | H159: 保健人员上岗培训合格证 | I159: 保健医生 | J159: 无 | K159: 无 | L159: 7 | M159: 留任 | N159: 16800 | O159: 8400
A160: 157 | B160: 观湖1 | C160: 157 | D160: 6 | E160: 深圳市龙华区鹭湖外国语小学附属振鹭幼儿园 | F160: 何孟徽 | G160: 女 | H160: 教师资格证 | I160: 办公室主任 | J160: 无 | K160: 无 | L160: 7 | M160: 留任 | N160: 16800 | O160: 8400
A161: 158 | B161: 观湖1 | C161: 158 | D161: 7 | E161: 深圳市龙华区鹭湖外国语小学附属振鹭幼儿园 | F161: 钟家欢 | G161: 女 | H161: 教师资格证 | I161: 专任教师 | J161: 中班 | K161: 1 | L161: 7 | M161: 留任 | N161: 16800 | O161: 8400
A162: 159 | B162: 观湖1 | C162: 159 | D162: 8 | E162: 深圳市龙华区鹭湖外国语小学附属振鹭幼儿园 | F162: 张检云 | G162: 女 | H162: 保育员职业技能等级证 | I162: 保育员 | J162: 小班 | K162: 2 | L162: 6 | M162: 留任 | N162: 14400 | O162: 7200
A163: 160 | B163: 观湖1 | C163: 160 | D163: 9 | E163: 深圳市龙华区鹭湖外国语小学附属振鹭幼儿园 | F163: 欧小迷 | G163: 女 | H163: 教师资格证 | I163: 专任教师 | J163: 小班 | K163: 1 | L163: 6 | M163: 留任 | N163: 14400 | O163: 7200
A164: 161 | B164: 观湖1 | C164: 161 | D164: 10 | E164: 深圳市龙华区鹭湖外国语小学附属振鹭幼儿园 | F164: 马雨欢 | G164: 女 | H164: 教师资格证 | I164: 专任教师 | J164: 中班 | K164: 2 | L164: 5 | M164: 留任 | N164: 12000 | O164: 6000
A165: 162 | B165: 观湖1 | C165: 162 | D165: 11 | E165: 深圳市龙华区鹭湖外国语小学附属振鹭幼儿园 | F165: 曾翠 | G165: 女 | H165: 教师资格证 | I165: 安全主任 | J165: 无 | K165: 无 | L165: 5 | M165: 留任 | N165: 12000 | O165: 6000
A166: 163 | B166: 观湖1 | C166: 163 | D166: 12 | E166: 深圳市龙华区鹭湖外国语小学附属振鹭幼儿园 | F166: 雷媛 | G166: 女 | H166: 教师资格证 | I166: 专任教师 | J166: 中班 | K166: 2 | L166: 4 | M166: 留任 | N166: 9600 | O166: 4800
A167: 164 | B167: 观湖1 | C167: 164 | D167: 13 | E167: 深圳市龙华区鹭湖外国语小学附属振鹭幼儿园 | F167: 郭诗佳 | G167: 女 | H167: 教师资格证 | I167: 专任教师 | J167: 无 | K167: 无 | L167: 4 | M167: 留任 | N167: 9600 | O167: 4800
A168: 165 | B168: 观湖1 | C168: 165 | D168: 14 | E168: 深圳市龙华区鹭湖外国语小学附属振鹭幼儿园 | F168: 万琼 | G168: 女 | H168: 教师资格证 | I168: 专任教师 | J168: 小班 | K168: 2 | L168: 4 | M168: 留任 | N168: 9600 | O168: 4800
A169: 166 | B169: 观湖1 | C169: 166 | D169: 15 | E169: 深圳市龙华区鹭湖外国语小学附属振鹭幼儿园 | F169: 常海里 | G169: 女 | H169: 保育员职业技能等级证 | I169: 保育员 | J169: 小班 | K169: 1 | L169: 4 | M169: 留任 | N169: 9600 | O169: 4800
A170: 167 | B170: 观湖1 | C170: 167 | D170: 16 | E170: 深圳市龙华区鹭湖外国语小学附属振鹭幼儿园 | F170: 李春花 | G170: 女 | H170: 保育员职业技能等级证 | I170: 保育员 | J170: 中班 | K170: 2 | L170: 4 | M170: 留任 | N170: 9600 | O170: 4800
A171: 168 | B171: 观湖1 | C171: 168 | D171: 17 | E171: 深圳市龙华区鹭湖外国语小学附属振鹭幼儿园 | F171: 焦荣荣 | G171: 女 | H171: 保育员职业技能等级证 | I171: 保育员 | J171: 大班 | K171: 1 | L171: 4 | M171: 留任 | N171: 9600 | O171: 4800
A172: 169 | B172: 观湖1 | C172: 169 | D172: 18 | E172: 深圳市龙华区鹭湖外国语小学附属振鹭幼儿园 | F172: 彭燕保 | G172: 女 | H172: 保育员职业技能等级证 | I172: 保育员 | J172: 中班 | K172: 1 | L172: 3 | M172: 留任 | N172: 7200 | O172: 3600
A173: 170 | B173: 观湖1 | C173: 170 | D173: 19 | E173: 深圳市龙华区鹭湖外国语小学附属振鹭幼儿园 | F173: 齐欢 | G173: 女 | H173: 教师资格证 | I173: 专任教师 | J173: 大班 | K173: 1 | L173: 2 | M173: 留任 | N173: 4800 | O173: 2400
A174: 171 | B174: 观湖1 | C174: 171 | D174: 20 | E174: 深圳市龙华区鹭湖外国语小学附属振鹭幼儿园 | F174: 罗琦 | G174: 女 | H174: 教师资格证 | I174: 专任教师 | J174: 大班 | K174: 2 | L174: 2 | M174: 留任 | N174: 4800 | O174: 2400
A175: 172 | B175: 观湖1 | C175: 172 | D175: 21 | E175: 深圳市龙华区鹭湖外国语小学附属振鹭幼儿园 | F175: 何明霞 | G175: 女 | H175: 教师资格证 | I175: 专任教师 | J175: 大班 | K175: 2 | L175: 2 | M175: 留任 | N175: 4800 | O175: 2400
A176: 173 | B176: 观湖1 | C176: 173 | D176: 1 | E176: 深圳市龙华区观湖幼教集团嘉园幼儿园 | F176: 王丹 | G176: 女 | H176: 教师资格证 | I176: 专任教师 | J176: 无 | K176: 无 | L176: 10 | M176: 留任 | N176: 24000 | O176: 12000 | P176: =SUMIF(E:E,E181,O:O) -> 177600
A177: 174 | B177: 观湖1 | C177: 174 | D177: 2 | E177: 深圳市龙华区观湖幼教集团嘉园幼儿园 | F177: 林展荣 | G177: 女 | H177: 教师资格证 | I177: 保育员 | J177: 大班 | K177: 3 | L177: 10 | M177: 留任 | N177: 24000 | O177: 12000
A178: 175 | B178: 观湖1 | C178: 175 | D178: 3 | E178: 深圳市龙华区观湖幼教集团嘉园幼儿园 | F178: 朱丽霞 | G178: 女 | H178: 教师资格证 | I178: 教学副园长 | J178: 无 | K178: 无 | L178: 10 | M178: 留任 | N178: 24000 | O178: 12000
A179: 176 | B179: 观湖1 | C179: 176 | D179: 4 | E179: 深圳市龙华区观湖幼教集团嘉园幼儿园 | F179: 尹月朗 | G179: 女 | H179: 教师资格证 | I179: 专任教师 | J179: 中班 | K179: 1 | L179: 10 | M179: 留任 | N179: 24000 | O179: 12000
A180: 177 | B180: 观湖1 | C180: 177 | D180: 5 | E180: 深圳市龙华区观湖幼教集团嘉园幼儿园 | F180: 朱文雅 | G180: 女 | H180: 教师资格证 | I180: 专任教师 | J180: 大班 | K180: 1 | L180: 9 | M180: 留任 | N180: 21600 | O180: 10800
A181: 178 | B181: 观湖1 | C181: 178 | D181: 6 | E181: 深圳市龙华区观湖幼教集团嘉园幼儿园 | F181: 魏婷婷 | G181: 女 | H181: 教师资格证 | I181: 专任教师 | J181: 中班 | K181: 2 | L181: 9 | M181: 留任 | N181: 21600 | O181: 10800
A182: 179 | B182: 观湖1 | C182: 179 | D182: 7 | E182: 深圳市龙华区观湖幼教集团嘉园幼儿园 | F182: 张文婷 | G182: 女 | H182: 教师资格证 | I182: 专任教师 | J182: 中班 | K182: 2 | L182: 7 | M182: 留任 | N182: 16800 | O182: 8400
A183: 180 | B183: 观湖1 | C183: 180 | D183: 8 | E183: 深圳市龙华区观湖幼教集团嘉园幼儿园 | F183: 莫兰珠 | G183: 女 | H183: 教师资格证 | I183: 专任教师 | J183: 无 | K183: 1 | L183: 6 | M183: 留任 | N183: 14400 | O183: 7200
A184: 181 | B184: 观湖1 | C184: 181 | D184: 9 | E184: 深圳市龙华区观湖幼教集团嘉园幼儿园 | F184: 陈丽方 | G184: 女 | H184: 保育员职业技能等级证 | I184: 保育员 | J184: 大班 | K184: 1 | L184: 6 | M184: 留任 | N184: 14400 | O184: 7200
A185: 182 | B185: 观湖1 | C185: 182 | D185: 10 | E185: 深圳市龙华区观湖幼教集团嘉园幼儿园 | F185: 欧阳玫岚 | G185: 女 | H185: 教师资格证 | I185: 专任教师 | J185: 大班 | K185: 2 | L185: 6 | M185: 留任 | N185: 14400 | O185: 7200
A186: 183 | B186: 观湖1 | C186: 183 | D186: 11 | E186: 深圳市龙华区观湖幼教集团嘉园幼儿园 | F186: 蒋琼婷 | G186: 女 | H186: 教师资格证 | I186: 专任教师 | J186: 中班 | K186: 1 | L186: 6 | M186: 留任 | N186: 14400 | O186: 7200
A187: 184 | B187: 观湖1 | C187: 184 | D187: 12 | E187: 深圳市龙华区观湖幼教集团嘉园幼儿园 | F187: 王丽君 | G187: 女 | H187: 教师资格证 | I187: 专任教师 | J187: 大班 | K187: 3 | L187: 5 | M187: 留任 | N187: 12000 | O187: 6000
A188: 185 | B188: 观湖1 | C188: 185 | D188: 13 | E188: 深圳市龙华区观湖幼教集团嘉园幼儿园 | F188: 罗乐 | G188: 女 | H188: 保育员职业技能等级证 | I188: 保育员 | J188: 大班 | K188: 2 | L188: 2 | M188: 留任 | N188: 4800 | O188: 2400
A189: 186 | B189: 观湖1 | C189: 186 | D189: 14 | E189: 深圳市龙华区观湖幼教集团嘉园幼儿园 | F189: 卓子渝 | G189: 女 | H189: 教师资格证 | I189: 专任教师 | J189: 中班 | K189: 2 | L189: 3 | M189: 留任 | N189: 7200 | O189: 3600
A190: 187 | B190: 观湖1 | C190: 187 | D190: 15 | E190: 深圳市龙华区观湖幼教集团嘉园幼儿园 | F190: 李丽丽 | G190: 女 | H190: 保育员职业技能等级证 | I190: 保育员 | J190: 小班 | K190: 1 | L190: 2 | M190: 留任 | N190: 4800 | O190: 2400
A191: 188 | B191: 观湖1 | C191: 188 | D191: 16 | E191: 深圳市龙华区观湖幼教集团嘉园幼儿园 | F191: 赵朱燕 | G191: 女 | H191: 教师资格证 | I191: 办公室主任 | J191: 无 | K191: 无 | L191: 3 | M191: 留任 | N191: 7200 | O191: 3600
A192: 189 | B192: 观湖1 | C192: 189 | D192: 17 | E192: 深圳市龙华区观湖幼教集团嘉园幼儿园 | F192: 方娟娟 | G192: 女 | H192: 教师资格证 | I192: 保教主任 | J192: 无 | K192: 无 | L192: 10 | M192: 留任 | N192: 24000 | O192: 12000
A193: 190 | B193: 观湖1 | C193: 190 | D193: 18 | E193: 深圳市龙华区观湖幼教集团嘉园幼儿园 | F193: 陈敏 | G193: 女 | H193: 教师资格证 | I193: 专任教师 | J193: 小班 | K193: 2 | L193: 6 | M193: 留任 | N193: 14400 | O193: 7200
A194: 191 | B194: 观湖1 | C194: 191 | D194: 19 | E194: 深圳市龙华区观湖幼教集团嘉园幼儿园 | F194: 洪凯珍 | G194: 女 | H194: 教师资格证 | I194: 专任教师 | J194: 大班 | K194: 1 | L194: 7 | M194: 留任 | N194: 16800 | O194: 8400
A195: 192 | B195: 观湖1 | C195: 192 | D195: 20 | E195: 深圳市龙华区观湖幼教集团嘉园幼儿园 | F195: 邝碧云 | G195: 女 | H195: 教师资格证 | I195: 专任教师 | J195: 大班 | K195: 3 | L195: 10 | M195: 留任 | N195: 24000 | O195: 12000
A196: 193 | B196: 观湖1 | C196: 193 | D196: 21 | E196: 深圳市龙华区观湖幼教集团嘉园幼儿园 | F196: 谭书梅 | G196: 女 | H196: 保育员上岗培训合格证 | I196: 保育员 | J196: 小班 | K196: 1 | L196: 1 | M196: 留任 | N196: 2400 | O196: 1200
A197: 194 | B197: 观湖1 | C197: 194 | D197: 22 | E197: 深圳市龙华区观湖幼教集团嘉园幼儿园 | F197: 封璇 | G197: 女 | H197: 教师资格证 | I197: 园长 | J197: 无 | K197: 无 | L197: 10 | M197: 新增 | N197: 24000 | O197: 12000
A198: 195 | B198: 观湖1 | C198: 195 | D198: 1 | E198: 深圳市龙华区观湖幼教集团雅苑幼儿园 | F198: 黄宇 | G198: 女 | H198: 教师资格证 | I198: 专任教师 | J198: 小班 | K198: 1 | L198: 8 | M198: 留任 | N198: 19200 | O198: 9600 | P198: =SUMIF(E:E,E210,O:O) -> 133200
A199: 196 | B199: 观湖1 | C199: 196 | D199: 2 | E199: 深圳市龙华区观湖幼教集团雅苑幼儿园 | F199: 陈美慈 | G199: 女 | H199: 教师资格证 | I199: 专任教师 | J199: 大班 | K199: 1 | L199: 8 | M199: 留任 | N199: 19200 | O199: 9600
A200: 197 | B200: 观湖1 | C200: 197 | D200: 3 | E200: 深圳市龙华区观湖幼教集团雅苑幼儿园 | F200: 刘丽兰 | G200: 女 | H200: 教师资格证 | I200: 专任教师 | J200: 中班 | K200: 3 | L200: 7 | M200: 留任 | N200: 16800 | O200: 8400
... 4300 more rows
